lending/lending_fUSD_20240504
["ID","MTS","AMOUNT","RATE_DAILY","PERIOD"]
[325424557,1714861844501,-500.0,0.00041095,30]
[325424558,1714861844511,-500.0,0.00041095,30]
[325424559,1714861844520,-1415.25,0.00041095,30]
[325424560,1714861844530,-2279.25,0.00041095,30]
[325424561,1714861844540,-500.0,0.00041095,30]
[325424562,1714861844549,-500.0,0.00041095,30]
[325424563,1714861844558,-3545.25,0.00041095,30]
[325424564,1714861844567,-1814.87,0.00041095,30]
[325424565,1714861844577,-501.46044012,0.00041095,30]
[325424566,1714861844587,-500.0,0.00041095,30]
[325424567,1714861844596,-560.5,0.00041095,30]
[325424568,1714861844605,-500.0,0.00041095,30]
[325424569,1714861844614,-1763.71,0.00041095,30]
[325424570,1714861844624,-500.0,0.00041095,30]
[325424571,1714861844633,-1693.27,0.00041095,30]
[325424572,1714861844647,-2544.81,0.00041095,30]
[325424573,1714861844656,-642.11,0.00041095,30]
[325424574,1714861844666,-1029.18,0.00041095,30]
[325424575,1714861844675,-547.17,0.00041095,30]
[325424576,1714861844686,-500.0,0.00041095,30]
[325424577,1714861844695,-2037.51,0.00041095,30]
[325424578,1714861844704,-500.0,0.00041095,30]
[325424579,1714861844713,-1784.65,0.00041095,30]
[325424580,1714861844723,-2423.83,0.00041095,30]
[325424581,1714861844733,-570.35,0.00041095,30]
[325424582,1714861844742,-910.29,0.00041095,30]
[325424583,1714861844751,-1807.45,0.00041095,30]
[325424584,1714861844760,-1765.23,0.00041095,30]
[325424585,1714861844770,-500.0,0.00041095,30]
[325424586,1714861844779,-500.0,0.00041095,30]
[325424587,1714861844788,-2870.2,0.00041095,30]
[325424588,1714861844798,-660.99,0.00041095,30]
[325424589,1714861844807,-1749.85,0.00041095,30]
[325424590,1714861844817,-191.62378352,0.00041095,30]
[325424591,1714861844826,-500.0,0.00041095,30]
[325424592,1714861844835,-500.0,0.00041095,30]
[325424593,1714861844844,-838.26,0.00041095,30]
[325424594,1714861844854,-500.0,0.00041095,30]
[325424595,1714861844863,-1520.9,0.00041095,30]
[325424596,1714861844872,-500.0,0.00041095,30]
[325424597,1714861844882,-1089.12,0.00041095,30]
[325424598,1714861844891,-500.0,0.00041095,30]
[325424599,1714861844901,-2609.35,0.00041095,30]
[325424600,1714861844910,-1794.99,0.00041095,30]
[325424601,1714861844919,-998.92,0.00041095,30]
[325424602,1714861844929,-2029.01,0.00041095,30]
[325424603,1714861844938,-1755.42,0.00041095,30]
[325424604,1714861844948,-500.0,0.00041095,30]
[325424605,1714861844958,-500.0,0.00041095,30]
[325424606,1714861844967,-920.08,0.00041095,30]
[325424607,1714861844976,-2109.43,0.00041095,30]
[325424608,1714861844986,-846.12,0.00041095,30]
[325424609,1714861844995,-500.0,0.00041095,30]
[325424610,1714861845004,-1818.84,0.00041095,30]
[325424611,1714861845015,-500.0,0.00041095,30]
[325424612,1714861845024,-1421.52,0.00041095,30]
[325424613,1714861845033,-955.44,0.00041095,30]
[325424614,1714861845042,-500.0,0.00041095,30]
[325424615,1714861845052,-1507.47,0.00041095,30]
[325424616,1714861845061,-2041.72,0.00041095,30]
[325424617,1714861845070,-500.0,0.00041095,30]
[325424618,1714861845080,-500.0,0.00041095,30]
[325424619,1714861845089,-500.0,0.00041095,30]
[325424620,1714861845098,-500.0,0.00041095,2]
[325424621,1714861845107,-1769.77,0.00041095,30]
[325424622,1714861845117,-500.0,0.00041095,30]
[325424623,1714861845126,-562.73,0.00041095,30]
[325424624,1714861845135,-500.0,0.00041095,30]
[325424625,1714861845144,-500.0,0.00041095,30]
[325424626,1714861845154,-749.57,0.00041095,30]
[325424627,1714861845163,-500.0,0.00041095,30]
[325424628,1714861845172,-979.28,0.00041095,30]
[325424629,1714861845181,-1325.01,0.00041095,30]
[325424630,1714861845191,-1472.2,0.00041095,30]
[325424631,1714861845200,-816.71,0.00041095,30]
[325424632,1714861845209,-500.0,0.00041095,30]
[325424633,1714861845219,-1308.86,0.00041095,30]
[325424634,1714861845228,-1134.63,0.00041095,30]
[325424635,1714861845239,-1600.3,0.00041095,30]
[325424636,1714861845248,-1739.99,0.00041095,30]
[325424637,1714861845258,-2010.51,0.00041095,30]
[325424638,1714861845267,-2373.54,0.00041095,30]
[325424639,1714861845276,-1984.11,0.00041095,30]
[325424640,1714861845286,-500.0,0.00041095,30]
[325424641,1714861845296,-500.0,0.00041095,30]
[325424642,1714861845305,-500.0,0.00041095,30]
[325424643,1714861845315,-500.0,0.00041095,30]
[325424644,1714861845324,-1177.98,0.00041095,30]
[325424645,1714861845334,-1329.29,0.00041095,30]
[325424646,1714861845343,-2582.86,0.00041095,30]
[325424647,1714861845353,-500.0,0.00041095,30]
[325424648,1714861845362,-500.0,0.00041095,30]
[325424649,1714861845372,-1541.9,0.00041095,30]
[325424650,1714861845382,-500.0,0.00041095,30]
[325424651,1714861845392,-500.0,0.00041095,30]
[325424652,1714861845401,-195.72575965,0.00041095,30]
[325424653,1714861845412,-1851.6,0.00041095,30]
[325424654,1714861845421,-2459.37,0.00041095,30]
[325424655,1714861845430,-1466.99,0.00041095,30]
[325424656,1714861845439,-1289.14,0.00041095,30]
[325424657,1714861845449,-1246.56,0.00041095,30]
[325424658,1714861845458,-500.0,0.00041095,30]
[325424659,1714861845468,-1960.58,0.00041095,30]
[325424660,1714861845477,-1470.13,0.00041095,30]
[325424661,1714861845488,-500.0,0.00041095,30]
[325424662,1714861845498,-862.16,0.00041095,30]
[325424663,1714861845507,-500.0,0.00041095,30]
[325424664,1714861845516,-500.0,0.00041095,30]
[325424665,1714861845526,-500.0,0.00041095,30]
[325424666,1714861845536,-580.8848286,0.00041095,30]
[325424667,1714861845545,-672.47,0.00041095,30]
[325424668,1714861845555,-500.0,0.00041095,30]
[325424669,1714861845564,-2504.99,0.00041095,30]
[325424670,1714861845574,-1693.02,0.00041095,30]
[325424671,1714861845583,-500.0,0.00041095,30]
[325424672,1714861845593,-500.0,0.00041095,30]
[325424673,1714861845602,-1098.77,0.00041095,30]
[325424674,1714861845613,-1076.79,0.00041095,30]
[325424675,1714861845622,-500.0,0.00041095,30]
[325424676,1714861845631,-1098.94,0.00041095,30]
[325424677,1714861845646,-1437.28,0.00041095,30]
[325424678,1714861845657,-774.78,0.00041095,30]
[325424679,1714861845667,-500.0,0.00041095,30]
[325424680,1714861845676,-2181.55,0.00041095,30]
[325424681,1714861845687,-3574.9,0.00041095,30]
[325424682,1714861845696,-500.0,0.00041095,30]
[325424683,1714861845706,-1036.49,0.00041095,30]
[325424684,1714861845715,-1178.93,0.00041095,30]
[325424685,1714861845726,-500.0,0.00041095,30]
[325424686,1714861845736,-1079.33,0.00041095,30]
[325424687,1714861845747,-500.0,0.00041095,30]
[325424688,1714861845757,-500.0,0.00041095,30]
[325424689,1714861845767,-910.32,0.00041095,30]
[325424690,1714861845776,-500.0,0.00041095,30]
[325424691,1714861845788,-1014.87,0.00041095,30]
[325424692,1714861845799,-1839.57,0.00041095,30]
[325424693,1714861845809,-2466.01,0.00041095,30]
[325424694,1714861845818,-2445.15,0.00041095,30]
[325424695,1714861845827,-500.0,0.00041095,30]
[325424696,1714861845836,-1367.03,0.00041095,30]
[325424697,1714861845846,-500.0,0.00041095,30]
[325424699,1714861845856,-696.99,0.00041095,30]
[325424701,1714861845865,-1428.11,0.00041095,30]
[325424702,1714861845875,-500.0,0.00041095,30]
[325424704,1714861845884,-1159.1,0.00041095,30]
[325424706,1714861845894,-500.0,0.00041095,30]
[325424708,1714861845903,-500.0,0.00041095,30]
[325424710,1714861845913,-819.88,0.00041095,30]
[325424711,1714861845923,-1345.24,0.00041095,30]
[325424712,1714861845933,-3092.54,0.00041095,30]
[325424713,1714861845942,-500.0,0.00041095,30]
[325424714,1714861845952,-1272.48,0.00041095,30]
[325424715,1714861845961,-2577.5,0.00041095,30]
[325424716,1714861845971,-539.81246888,0.00041095,30]
[325424717,1714861845981,-2546.68,0.00041095,30]
[325424718,1714861845991,-500.0,0.00041095,30]
[325424719,1714861846001,-1448.21,0.00041095,30]
[325424720,1714861846010,-800.08,0.00041095,30]
[325424721,1714861846020,-500.0,0.00041095,30]
[325424722,1714861846030,-299.71030519,0.00041095,30]
[325424723,1714861846040,-859.19,0.00041095,30]
[325424724,1714861846049,-1769.15,0.00041095,30]
[325424725,1714861846059,-1129.93,0.00041095,30]
[325424726,1714861846069,-500.0,0.00041095,30]
[325424727,1714861846089,-1800.3,0.00041095,30]
[325424728,1714861846111,-1335.04,0.00041095,30]
[325424729,1714861846121,-1324.31,0.00041095,30]
[325424730,1714861846131,-852.48,0.00041095,30]
[325424731,1714861846141,-1063.44,0.00041095,30]
[325424732,1714861846151,-500.0,0.00041095,30]
[325424733,1714861846163,-2127.86,0.00041095,30]
[325424734,1714861846172,-1567.44,0.00041095,30]
[325424735,1714861846184,-500.0,0.00041095,30]
[325424736,1714861846194,-500.0,0.00041095,30]
[325424737,1714861846205,-500.0,0.00041095,30]
[325424738,1714861846217,-942.29,0.00041095,30]
[325424739,1714861846227,-500.0,0.00041095,30]
[325424740,1714861846238,-500.0,0.00041095,30]
[325424741,1714861846247,-500.0,0.00041095,30]
[325424742,1714861846256,-500.0,0.00041095,30]
[325424743,1714861846266,-500.0,0.00041095,30]
[325424744,1714861846275,-500.0,0.00041095,30]
[325424745,1714861846287,-1492.16,0.00041095,30]
[325424746,1714861846296,-500.0,0.00041095,30]
[325424747,1714861846305,-1136.63,0.00041095,30]
[325424748,1714861846315,-937.97,0.00041095,30]
[325424749,1714861846326,-1723.11,0.00041095,30]
[325424750,1714861846336,-1271.91,0.00041095,30]
[325424751,1714861846346,-2315.87,0.00041095,30]
[325424752,1714861846355,-766.67,0.00041095,30]
[325424753,1714861846365,-700.32,0.00041095,30]
[325424754,1714861846374,-1034.48,0.00041095,30]
[325424755,1714861846384,-500.0,0.00041095,30]
[325424756,1714861846394,-500.0,0.00041095,30]
[325424757,1714861846404,-988.37,0.00041095,30]
[325424758,1714861846414,-5000.0,0.00041095,30]
[325424759,1714861846424,-1009.72,0.00041095,30]
[325424760,1714861846434,-823.05,0.00041095,30]
[325424761,1714861846445,-500.0,0.00041095,30]
[325424762,1714861846455,-500.0,0.00041095,30]
[325424763,1714861846466,-500.0,0.00041095,2]
[325424764,1714861846475,-3205.18,0.00041095,2]
[325424765,1714861846485,-500.0,0.00041095,30]
[325424766,1714861846494,-1845.61,0.00041095,30]
[325424767,1714861846504,-1651.81,0.00041095,30]
[325424768,1714861846513,-1649.09,0.00041095,30]
[325424770,1714861846523,-2173.12,0.00041095,2]
[325424772,1714861846532,-500.0,0.00041095,30]
[325424774,1714861846542,-502.285162,0.00041095,30]
[325424776,1714861846552,-757.52,0.00041095,30]
[325424778,1714861846562,-736.21,0.00041095,30]
[325424779,1714861846573,-1300.51,0.00041095,30]
[325424780,1714861846582,-1629.04,0.00041095,30]
[325424781,1714861846592,-500.0,0.00041095,30]
[325424782,1714861846603,-710.52,0.00041095,30]
[325424783,1714861846613,-1930.43,0.00041095,30]
[325424784,1714861846625,-814.56,0.00041095,30]
[325424785,1714861846635,-500.0,0.00041095,30]
[325424786,1714861846650,-1559.36,0.00041095,30]
[325424787,1714861846660,-661.83,0.00041095,30]
[325424788,1714861846671,-500.0,0.00041095,30]
[325424789,1714861846682,-500.0,0.00041095,30]
[325424790,1714861846691,-500.0,0.00041095,30]
[325424791,1714861846700,-754.06,0.00041095,30]
[325424792,1714861846710,-570.0,0.00041095,30]
[325424793,1714861846721,-732.56,0.00041095,30]
[325424794,1714861846731,-500.0,0.00041095,30]
[325424795,1714861846741,-500.0,0.00041095,30]
[325424796,1714861846751,-827.5,0.00041095,30]
[325424797,1714861846838,-518.39,0.00041095,30]
[325424798,1714861846848,-558.42877919,0.00041095,30]
[325424799,1714861846858,-1797.55,0.00041095,30]
[325424800,1714861846867,-2541.25,0.00041095,30]
[325424801,1714861846876,-1000.0,0.00041095,30]
[325424802,1714861846886,-500.0,0.00041095,30]
[325424803,1714861846895,-1237.21,0.00041095,30]
[325424804,1714861846904,-1553.24,0.00041095,30]
[325424805,1714861846913,-500.0,0.00041095,30]
[325424806,1714861846923,-1597.56,0.00041095,30]
[325424807,1714861846933,-500.0,0.00041095,30]
[325424808,1714861846943,-1319.0,0.00041095,30]
[325424809,1714861846952,-2192.89,0.00041095,30]
[325424810,1714861846962,-500.0,0.00041095,30]
[325424811,1714861846972,-500.0,0.00041095,30]
[325424812,1714861846983,-844.17,0.00041095,30]
[325424813,1714861846992,-1693.91,0.00041095,30]
[325424814,1714861847001,-500.0,0.00041095,30]
[325424815,1714861847010,-500.0,0.00041095,30]
[325424816,1714861847020,-803.17,0.00041095,30]
[325424817,1714861847030,-500.0,0.00041095,30]
[325424818,1714861847039,-500.0,0.00041095,30]
[325424819,1714861847049,-701.43,0.00041095,30]
[325424820,1714861847058,-500.0,0.00041095,30]
[325424821,1714861847067,-1741.15,0.00041095,30]
[325424822,1714861847076,-1857.12,0.00041095,30]
[325424823,1714861847086,-511.87218037,0.00041095,30]
[325424824,1714861847096,-1402.5,0.00041095,30]
[325424825,1714861847105,-500.0,0.00041095,30]
[325424826,1714861847114,-500.0,0.00041095,30]
[325424827,1714861847123,-1307.01,0.00041095,30]
[325424828,1714861847132,-500.0,0.00041095,30]
[325424829,1714861847141,-837.48,0.00041095,30]
[325424830,1714861847150,-2100.62,0.00041095,30]
[325424831,1714861847159,-1042.72,0.00041095,30]
[325424832,1714861847168,-500.0,0.00041095,30]
[325424833,1714861847177,-500.0,0.00041095,30]
[325424834,1714861847186,-500.0,0.00041095,30]
[325424835,1714861847195,-500.0,0.00041095,30]
[325424836,1714861847204,-1202.2,0.00041095,30]
[325424837,1714861847213,-500.0,0.00041095,30]
[325424838,1714861847222,-583.24,0.00041095,30]
[325424839,1714861847231,-502.76212884,0.00041095,30]
[325424840,1714861847241,-3403.64,0.00041095,30]
[325424841,1714861847250,-1273.6,0.00041095,30]
[325424842,1714861847260,-500.0,0.00041095,30]
[325424843,1714861847269,-1496.47,0.00041095,30]
[325424844,1714861847279,-764.2,0.00041095,30]
[325424845,1714861847288,-502.10579301,0.00041095,30]
[325424846,1714861847297,-500.0,0.00041095,30]
[325424847,1714861847306,-2431.32,0.00041095,30]
[325424848,1714861847316,-884.18,0.00041095,30]
[325424849,1714861847325,-500.0,0.00041095,30]
[325424850,1714861847335,-486.89200308,0.00041095,30]
[325424851,1714861847345,-855.28,0.00041095,30]
[325424852,1714861847354,-1642.39,0.00041095,30]
[325424853,1714861847363,-3308.16,0.00041095,30]
[325424854,1714861847373,-640.46,0.00041095,30]
[325424855,1714861847382,-1879.09,0.00041095,30]
[325424856,1714861847393,-500.0,0.00041095,30]
[325424857,1714861847404,-500.0,0.00041095,30]
[325424858,1714861847416,-624.31084048,0.00041095,30]
[325424859,1714861847429,-500.0,0.00041095,7]
[325424860,1714861847442,-500.0,0.00041095,30]
[325424861,1714861847451,-2517.21,0.00041095,30]
[325424862,1714861847460,-781.74,0.00041095,30]
[325424863,1714861847470,-500.0,0.00041095,30]
[325424864,1714861847479,-500.0,0.00041095,30]
[325424865,1714861847490,-1709.3,0.00041095,30]
[325424866,1714861847499,-500.0,0.00041095,30]
[325424867,1714861847508,-1628.34,0.00041095,30]
[325424868,1714861847518,-517.63,0.00041095,30]
[325424869,1714861847527,-500.0,0.00041095,30]
[325424870,1714861847537,-656.7,0.00041095,30]
[325424871,1714861847546,-500.0,0.00041095,30]
[325424872,1714861847555,-882.64,0.00041095,30]
[325424873,1714861847565,-500.0,0.00041095,30]
[325424874,1714861847574,-1310.62,0.00041095,30]
[325424875,1714861847584,-500.0,0.00041095,30]
[325424876,1714861847593,-683.81,0.00041095,30]
[325424877,1714861847602,-1264.74,0.00041095,30]
[325424878,1714861847611,-1232.18,0.00041095,30]
[325424879,1714861847620,-809.25,0.00041095,30]
[325424880,1714861847629,-747.14,0.00041095,30]
[325424881,1714861847640,-14768.88,0.00041095,30]
[325424882,1714861847654,-500.0,0.00041095,30]
[325424883,1714861847663,-500.0,0.00041095,30]
[325424884,1714861847673,-2129.69,0.00041095,30]
[325424885,1714861847683,-500.0,0.00041095,30]
[325424886,1714861847693,-703.75,0.00041095,30]
[325424887,1714861847702,-573.04,0.00041095,30]
[325424888,1714861847711,-500.0,0.00041095,30]
[325424889,1714861847721,-500.0,0.00041095,30]
[325424890,1714861847732,-500.0,0.00041095,30]
[325424891,1714861847742,-925.4,0.00041095,30]
[325424892,1714861847750,-500.0,0.00041095,30]
[325424893,1714861847760,-3149.0,0.00041095,30]
[325424894,1714861847769,-500.0,0.00041095,30]
[325424895,1714861847778,-657.14,0.00041095,30]
[325424896,1714861847788,-500.0,0.00041095,30]
[325424897,1714861847798,-614.58,0.00041095,30]
[325424898,1714861847807,-500.0,0.00041095,30]
[325424899,1714861847817,-57593.56,0.00041095,30]
[325424900,1714861847827,-4000.0,0.00041095,30]
[325424901,1714861847837,-500.0,0.00041095,30]
[325424902,1714861847846,-1781.22,0.00041095,30]
[325424903,1714861847855,-500.0,0.00041095,30]
[325424904,1714861847865,-1630.62,0.00041095,30]
[325424905,1714861847875,-1866.63,0.00041095,30]
[325424906,1714861847885,-500.0,0.00041095,30]
[325424907,1714861847895,-500.0,0.00041095,30]
[325424908,1714861847905,-1267.77,0.00041095,30]
[325424909,1714861847914,-500.0,0.00041095,30]
[325424910,1714861847923,-2012.92,0.00041095,30]
[325424911,1714861847932,-500.0,0.00041095,30]
[325424912,1714861847941,-500.0,0.00041095,30]
[325424913,1714861847950,-2024.77,0.00041095,30]
[325424914,1714861847959,-500.0,0.00041095,30]
[325424915,1714861847968,-804.93,0.00041095,30]
[325424916,1714861847977,-853.45,0.00041095,30]
[325424917,1714861847987,-500.0,0.00041095,30]
[325424918,1714861847996,-1809.57,0.00041095,30]
[325424919,1714861848006,-500.0,0.00041095,30]
[325424920,1714861848015,-500.0,0.00041095,30]
[325424921,1714861848025,-1644.56,0.00041095,30]
[325424922,1714861848034,-500.0,0.00041095,30]
[325424923,1714861848043,-832.92,0.00041095,30]
[325424924,1714861848052,-1491.49,0.00041095,30]
[325424925,1714861848061,-500.0,0.00041095,30]
[325424926,1714861848070,-1606.35,0.00041095,30]
[325424927,1714861848079,-623.97,0.00041095,30]
[325424928,1714861848088,-4243.58,0.00041095,30]
[325424929,1714861848097,-715.29,0.00041095,30]
[325424930,1714861848106,-1527.1,0.00041095,30]
[325424931,1714861848115,-985.03,0.00041095,30]
[325424932,1714861848124,-500.0,0.00041095,30]
[325424933,1714861848133,-500.0,0.00041095,30]
[325424934,1714861848142,-502.01349116,0.00041095,30]
[325424935,1714861848151,-500.0,0.00041095,30]
[325424936,1714861848160,-3779.48,0.00041095,30]
[325424937,1714861848170,-500.0,0.00041095,30]
[325424938,1714861848179,-936.47,0.00041095,30]
[325424939,1714861848188,-764.10478091,0.00041095,30]
[325424940,1714861848830,-550.74424649,0.00041095,30]
[325424941,1714861848849,-722.0409726,0.00041095,30]
[325424942,1714861848858,-500.0,0.00041095,30]
[325424943,1714861848869,-1509.01,0.00041095,30]
[325424944,1714861848880,-698.58,0.00041095,30]
[325424945,1714861848891,-2175.39,0.00041095,30]
[325424946,1714861848900,-550.45,0.00041095,30]
[325424947,1714861848910,-500.0,0.00041095,30]
[325424948,1714861848920,-1067.12,0.00041095,30]
[325424949,1714861848930,-770.95,0.00041095,30]
[325424950,1714861848940,-500.0,0.00041095,30]
[325424951,1714861848949,-847.44031819,0.00041095,30]
[325424952,1714861848963,-376.36968181,0.00041095,30]
[325424953,1714861848972,-2122.23,0.00041095,30]
[325424954,1714861848982,-1026.28,0.00041095,30]
[325424955,1714861848992,-500.0,0.00041095,30]
[325424956,1714861849001,-1027.95,0.00041095,30]
[325424957,1714861849010,-374.7495786,0.00041095,30]
[325424958,1714861849019,-4885.06802811,0.00041095,30]
[325424959,1714861849033,-1398.93197189,0.00041095,30]
[325424960,1714861849043,-828.68049436,0.00041095,30]
[325424961,1714861849056,-761.57950564,0.00041095,30]
[325424962,1714861849066,-850.24,0.00041095,30]
[325424963,1714861849075,-615.86049436,0.00041095,30]
[325424964,1714861849087,-380.04,0.00041095,30]
[325424965,1714861849099,-87.46950564,0.00041095,30]
[325424966,1714861849108,-194.21049436,0.00041095,30]
[325424967,1714861849120,-305.78950564,0.00041095,30]
[325424968,1714861849132,-70.38216839,0.00041095,30]
[325424969,1714861849194,-1735.77783161,0.00041095,30]
[325424970,1714861849205,-804.4,0.00041095,30]
[325424971,1714861849216,-996.42,0.00041095,30]
[325424972,1714861849226,-41.20946981,0.00041095,30]
[325424973,1714861849891,-346.09482282,0.00027397,2]
[325424974,1714861849901,-661.11053019,0.00041095,30]
[325424975,1714861849910,-592.79464699,0.00041095,30]
[325424976,1714861849921,-613.99945135,0.00041095,30]
[325424977,1714861850048,-960.0,0.00041095,30]
[325424978,1714861850060,-273.67590166,0.00041095,30]
[325424979,1714861850070,-500.0,0.00041095,30]
[325424980,1714861850079,-397.92468622,0.00041095,30]
[325424981,1714861850090,-5061.64822947,0.00041095,30]
[325424982,1714861850101,-2920.58028217,0.00041095,30]
[325424983,1714861850160,-500.0,0.00025328,2]
[325424984,1714861850170,-2208.24162425,0.00041095,30]
[325424985,1714861850181,-3018.05,0.00041095,30]
[325424986,1714861850966,-500.0,0.00025328,2]
[325424987,1714861850975,-444.24032966,0.00025328,2]
[325424988,1714861850984,-365.91491083,0.00041095,30]
[325424989,1714861850996,-388.33599996,0.00041095,30]
[325424990,1714861851018,-241.95146758,0.00040995,2]
[325424991,1714861851027,-6139.54853242,0.00041095,30]
[325424992,1714861851038,-270.42738461,0.00041095,30]
[325424993,1714861851066,-4927.84200102,0.00041095,30]
[325424994,1714861851076,-764.3827112,0.00041095,30]
[325424995,1714861851097,-4349.01500908,0.00041095,30]
[325424996,1714861851112,-1503.1725,0.00041095,30]
[325424997,1714861852909,-2000.81106848,0.00025327,2]
[325424998,1714861852921,-1850.25890307,0.00025327,2]
[325424999,1714861852933,-23.13111715,0.00025327,2]
[325425000,1714861852942,-168.847747,0.00025327,2]
[325425001,1714861852952,-537.02113585,0.00025327,2]
[325425002,1714861852963,-404.4192757,0.00025327,2]
[325425003,1714861852974,-4608.75303101,0.00025327,2]
[325425004,1714861852983,-3162.4755559,0.00041094,4]
[325425005,1714861852995,-782.5791014,0.00041095,30]
[325425006,1714861853006,-762.58582215,0.00041095,30]
[325425007,1714861853019,-442.00189353,0.00041095,30]
[325425008,1714861853031,-607.97134023,0.00041095,30]
[325425009,1714861853047,-2362.176004,0.00041095,30]
[325425010,1714861853059,-668.22689026,0.00041095,30]
[325425011,1714861853114,-310.0765343,0.00041095,30]
[325425012,1714861853126,-1141.0685429,0.00041095,30]
[325425013,1714861853135,-500.0,0.00041095,30]
[325425014,1714861853145,-1871.13,0.00041095,30]
[325425015,1714861853154,-130.65165756,0.00041095,30]
[325425016,1714861853165,-369.34834244,0.00041095,30]
[325425017,1714861853175,-784.19,0.00041095,30]
[325425018,1714861853184,-1714.34,0.00041095,30]
[325425019,1714861853193,-497.32577044,0.00041095,30]
[325425020,1714861853787,-430.91422956,0.00041095,30]
[325425021,1714861853797,-500.0,0.00041095,30]
[325425022,1714861853807,-342.98577044,0.00041095,30]
[325425050,1714863032314,-672.3424,0.00012999,2]
[325425051,1714863032326,-2383.17623775,0.00012999,2]
[325425052,1714863032336,-616.14092597,0.00013,2]
[325425053,1714863032347,-2695.54407403,0.00013,2]
[325425054,1714863032356,-188.60134713,0.00013,2]
[325425055,1714863032365,-155.0,0.00015,2]
[325425056,1714863032375,-12380.5307,0.00017159,2]
[325425057,1714863032384,-3874.2010887,0.000192,2]
[325425058,1714863032393,-192.39,0.00019452,3]
[325425059,1714863032402,-6598.73307704,0.00019452,2]
[325425060,1714863032414,-6630.37692296,0.00019452,2]
[325425061,1714863032423,-150.99,0.00019452,2]
[325425062,1714863032432,-150.99,0.00019452,2]
[325425063,1714863032441,-53.75228466,0.00019452,2]
[325425071,1714863032741,-3400.39942654,0.00019452,2]
[325425072,1714863032752,-588.71486484,0.00019452,2]
[325425073,1714863032764,-3210.7,0.00019452,2]
[325425074,1714863032775,-2746.42342396,0.00019452,2]
[325425075,1714863032784,-150.99,0.00019726,2]
[325425076,1714863032794,-1794.53,0.00019726,2]
[325425077,1714863032803,-155.0,0.000209,2]
[325425078,1714863032812,-854.07,0.00021644,2]
[325425079,1714863032821,-1809.29,0.00021644,2]
[325425080,1714863032831,-155.54,0.00021644,2]
[325425081,1714863032840,-188.23,0.00021644,2]
[325425082,1714863032849,-156.46,0.00021918,2]
[325425083,1714863032860,-9513.96895802,0.000229,2]
[325425089,1714863038398,-188.60134713,0.00014999,2]
[325425090,1714863038408,-2535.39865287,0.000229,2]
[325425091,1714863038419,-438.29,0.000229,2]
[325425092,1714863038432,-1814.56851,0.000229,2]
[325425093,1714863038443,-4092.71917911,0.000229,2]
[325425094,1714863038454,-17693.23462494,0.00023,2]
[325425095,1714863038464,-2000.61208485,0.000234,2]
[325425096,1714863038475,-432.11468821,0.00024,2]
[325425097,1714863038486,-499.99,0.00024657,2]
[325425098,1714863038496,-5000.0,0.00025,2]
[325425099,1714863038506,-2607.87522376,0.00025,2]
[325425100,1714863038517,-471.39951687,0.00025,2]
[325425101,1714863038528,-456.66329758,0.00025,7]
[325425102,1714863038537,-234.88,0.0002503,2]
[325425103,1714863038548,-1000.0,0.00025033,2]
[325425104,1714863038559,-169.9918662,0.00025127,2]
[325425105,1714863038571,-300.0,0.00025227,2]
[325425106,1714863038580,-190.61689936,0.00025326,2]